bitfinex-derivatives/quotes_SOLF0:USTF0_20250428
["timestamp","ask_amount","ask_price","bid_price","bid_amount"]
[1745839370028,4.40955589,152.33,152.19,374.1361]
[1745839370236,4.40898338,152.32,152.2,1.20579542]
[1745839370434,6.5633,152.31,152.2,1.20579542]
[1745839371436,6.5633,152.31,152.28,6.5645]
[1745839371933,6.563,152.32,152.19,374.1361]
[1745839372134,19.71,152.39,152.2,1.20593118]
[1745839372335,4.40994885,152.38,152.2,1.20593118]
[1745839372634,4.40994885,152.37,152.2,1.20593118]
[1745839372835,4.40994885,152.36,152.2,1.20593118]
[1745839373037,4.40994885,152.35,152.2,1.20593118]
[1745839373239,492.23,152.4,152.2,1.20593118]
[1745839373437,4.4107786,152.39,152.31,6.5632]
[1745839373739,4.4107786,152.38,152.22,13.1336]
[1745839374039,4.4107786,152.37,152.3,6.5634]
[1745839374337,6.5622,152.34,152.3,6.5634]
[1745839374734,6.5618,152.35,152.23,13.1332]
[1745839375038,492.23,152.4,152.23,13.1332]
[1745839375235,24.11655915,152.39,152.23,13.1332]
[1745839375436,6.5618,152.35,152.31,6.5629]
[1745839375834,4.40589878,152.34,152.3,6.5634]
[1745839376137,19.71,152.39,152.23,13.1332]
[1745839376335,24.11662209,152.38,152.23,13.1332]
[1745839376535,4.40662209,152.37,152.29,6.5637]
[1745839376735,4.40662209,152.36,152.23,13.1332]
[1745839377037,6.5626,152.33,152.3,6.5636]
[1745839377436,19.71,152.39,152.3,6.5636]
[1745839377637,6.5627,152.33,152.3,6.5636]
[1745839378143,19.71,152.38,152.3,6.5636]
[1745839378440,4.40673143,152.37,152.31,6.5632]
[1745839378735,6.5619,152.35,152.32,6.5625]
[1745839378940,4.40673143,152.34,152.32,6.5625]
[1745839379235,6.562,152.34,152.32,6.5625]
[1745839379440,6.562,152.34,152.31,6.563]
[1745839379640,6.562,152.34,152.23,13.1332]
[1745839380040,6.562,152.34,152.31,6.5629]
[1745839380642,6.562,152.34,152.32,6.5628]
[1745839380944,6.5616,152.35,152.24,13.1323]
[1745839381243,472.52,152.4,152.19,362.14255696]
[1745839381543,4.40339715,152.39,152.25,13.1316]
[1745839381742,4.40339715,152.38,152.25,13.1316]
[1745839382041,6.5613,152.36,152.25,13.1316]
[1745839382541,6.5613,152.36,152.33,6.5621]
[1745839383043,472.52,152.4,152.21,1.14248194]
[1745839383244,4.39938479,152.39,152.22,1.20546794]
[1745839383543,4.39938479,152.38,152.22,1.20546794]
[1745839383742,6.5605,152.38,152.35,6.5614]
[1745839384645,6.5605,152.38,152.36,6.561]
[1745839384839,19.69,152.46,152.28,13.1283]
[1745839385046,4.39853389,152.45,152.21,362.14248194]
[1745839385246,4.39853389,152.44,152.23,19.6998]
[1745839385442,6.56,152.39,152.29,13.1279]
[1745839385842,6.56,152.39,152.36,6.5608]
[1745839386344,6.56,152.39,152.35,6.5612]
[1745839386745,6.5603,152.38,152.35,6.5612]
[1745839386945,6.5603,152.38,152.36,6.5611]
[1745839388043,6.5603,152.38,152.35,6.5613]
[1745839390042,6.5599,152.39,152.36,6.561]
[1745839390238,19.69,152.47,152.29,13.1279]
[1745839390438,24.08407801,152.46,152.29,13.1279]
[1745839390642,4.39407801,152.45,152.29,13.1279]
[1745839390848,4.39407801,152.44,152.29,13.1279]
[1745839391046,4.39407801,152.43,152.29,13.1279]
[1745839391346,6.56,152.39,152.36,6.5608]
[1745839392549,6.5602,152.38,152.35,6.5613]
[1745839392742,6.5602,152.38,152.29,13.1279]
[1745839393047,6.5599,152.39,152.29,13.1279]
[1745839393748,6.5599,152.39,152.36,6.561]
[1745839395454,19.69,152.45,152.29,13.1279]
[1745839395647,4.388624,152.44,152.29,13.1279]
[1745839395847,4.38864601,152.43,152.29,13.1279]
[1745839396048,4.38864601,152.42,152.33,6.5621]
[1745839396249,4.38864601,152.41,152.33,6.5621]
[1745839396450,4.38864601,152.4,152.33,6.5621]
[1745839396745,6.5614,152.36,152.31,6.5629]
[1745839397151,13.1171,152.42,152.31,6.5629]
[1745839397349,4.38862955,152.41,152.31,6.5629]
[1745839397644,4.38862955,152.4,152.31,6.5629]
[1745839397849,6.5622,152.34,152.31,6.5629]
[1745839398458,6.5622,152.34,152.32,6.5627]
[1745839398754,6.5622,152.34,152.26,472.46]
[1745839399156,6.5622,152.34,152.31,6.5629]
[1745839399863,6.5624,152.33,152.31,6.5629]
[1745839400460,6.5624,152.33,152.3,6.5636]
[1745839401258,19.69,152.41,152.26,472.46]
[1745839401457,4.38785101,152.4,152.26,472.46]
[1745839401659,6.563,152.32,152.29,6.5639]
[1745839401858,6.563,152.32,152.26,472.46]
[1745839403057,6.5626,152.33,152.26,472.46]
[1745839403256,6.5626,152.33,152.3,6.5636]
[1745839403755,6.5628,152.32,152.26,472.46]
[1745839403962,6.5628,152.32,152.29,6.5638]
[1745839404261,13.12,152.39,152.26,472.46]
[1745839404465,6.5627,152.33,152.3,6.5635]
[1745839404964,13.12,152.39,152.26,472.46]
[1745839405153,4.39972024,152.38,152.26,472.46]
[1745839405351,6.5626,152.33,152.3,6.5635]
[1745839406958,6.5626,152.33,152.31,6.5632]
[1745839409763,6.5626,152.33,152.3,6.5635]
[1745839410660,6.5628,152.32,152.3,6.5635]
[1745839410862,13.12,152.39,152.3,6.5635]
[1745839411056,6.5625,152.33,152.3,6.5635]
[1745839413065,13.12,152.39,152.3,6.5635]
[1745839413265,4.40462931,152.38,152.3,6.5635]
[1745839413465,6.5626,152.33,152.31,6.5632]
[1745839417168,6.5626,152.33,152.3,6.5634]
[1745839417767,6.5626,152.33,152.31,6.5631]
[1745839418769,6.5626,152.33,152.3,6.5635]
[1745839420067,6.5628,152.32,152.3,6.5635]
[1745839420268,13.12,152.39,152.3,6.5635]
[1745839420468,4.40611529,152.38,152.3,6.5635]
[1745839420765,4.40611529,152.37,152.3,6.5635]
[1745839420966,6.5627,152.33,152.3,6.5635]
[1745839421365,13.12,152.39,152.3,6.5635]
[1745839421565,4.4040686,152.38,152.3,6.5635]
[1745839421769,4.40345359,152.37,152.3,6.5635]
[1745839422066,4.40345359,152.36,152.3,6.5635]
[1745839422266,4.40345359,152.35,152.3,6.5635]
[1745839422468,13.12,152.39,152.31,6.5631]
[1745839422668,4.40361578,152.38,152.24,374.1321]
[1745839422867,4.40361578,152.37,152.24,374.1321]
[1745839423068,6.5627,152.33,152.3,6.5633]
[1745839423470,13.12,152.39,152.3,6.5633]
[1745839423769,6.5628,152.32,152.3,6.5633]
[1745839424362,32.81,152.39,152.24,374.1321]
[1745839424566,4.4038367,152.38,152.24,13.1321]
[1745839424867,4.4038367,152.37,152.29,6.5638]
[1745839425065,4.4038367,152.36,152.29,6.5638]
[1745839425267,4.4038367,152.35,152.29,6.5638]
[1745839425561,4.4038367,152.34,152.29,6.5638]
[1745839425761,13.1205,152.38,152.29,6.5638]
[1745839425965,4.4024779,152.37,152.29,6.5638]
[1745839426169,4.4024779,152.36,152.29,6.5638]
[1745839426468,4.4024779,152.35,152.29,6.5638]
[1745839426671,4.4024779,152.34,152.29,6.5638]
[1745839426870,13.1205,152.38,152.29,6.5638]
[1745839427072,4.40227122,152.37,152.29,6.5638]
[1745839427371,4.40227122,152.36,152.3,6.5636]
[1745839427570,6.563,152.32,152.3,6.5636]
[1745839430175,32.8075,152.42,152.25,13.1316]
[1745839430376,32.8075,152.42,152.21,833.4]
[1745839430377,4.40309606,152.41,152.21,833.4]
[1745839430568,4.40309606,152.4,152.22,1.20555432]
[1745839430867,6.5604,152.38,152.34,6.5615]
[1745839431173,6.5604,152.38,152.22,19.7006]
[1745839431372,6.5604,152.38,152.23,1.20548749]
[1745839431673,6.5604,152.38,152.28,13.1287]
[1745839432575,6.5604,152.38,152.35,6.5612]
[1745839433075,6.5599,152.39,152.36,6.5608]
[1745839433576,472.42,152.43,152.28,13.1287]
[1745839433775,6.5604,152.38,152.35,6.5613]
[1745839435677,6.5604,152.38,152.36,6.561]
[1745839436474,6.5604,152.38,152.35,6.5613]
[1745839436874,6.5604,152.38,152.28,13.1287]
[1745839437076,6.5604,152.38,152.35,6.5612]
[1745839439977,6.5607,152.37,152.28,13.1287]
[1745839440181,19.69,152.43,152.28,13.1287]
[1745839440474,4.41379921,152.42,152.28,13.1287]
[1745839440680,4.41379921,152.41,152.24,14.27441945]
[1745839440874,4.41379921,152.4,152.24,1.14221945]
[1745839441180,6.5611,152.36,152.25,1.20543672]
[1745839441371,6.5611,152.36,152.25,14.33693672]
[1745839441573,6.5611,152.36,152.26,1.20543672]
[1745839441880,6.5615,152.35,152.33,6.5621]
[1745839442980,6.5613,152.36,152.33,6.5621]
[1745839443582,6.5613,152.36,152.34,6.5619]
[1745839443781,19.69,152.43,152.23,362.14236943]
[1745839444076,4.41086599,152.42,152.24,1.20550982]
[1745839444281,4.41086599,152.41,152.34,6.5615]
[1745839444481,19.69,152.43,152.34,6.5615]
[1745839444482,6.5606,152.38,152.34,6.5615]
[1745839444775,4.41086599,152.37,152.34,6.5615]
[1745839444979,6.5606,152.38,152.34,6.5615]
[1745839445180,6.5606,152.38,152.35,6.5614]
[1745839445682,6.5607,152.37,152.34,6.5618]
[1745839446284,6.5604,152.38,152.35,6.5614]
[1745839446882,6.5599,152.39,152.36,6.5609]
[1745839447083,32.802,152.48,152.23,362.14236943]
[1745839447380,6.5594,152.4,152.37,6.5604]
[1745839447582,4.40886622,152.39,152.37,6.5604]
[1745839447782,19.69,152.46,152.29,13.1278]
[1745839448083,6.5593,152.4,152.37,6.5604]
[1745839451888,6.5599,152.39,152.37,6.5604]
[1745839452190,19.69,152.45,152.29,13.1278]
[1745839452389,24.09870898,152.44,152.29,13.1278]
[1745839453493,6.5603,152.38,152.29,13.1278]
[1745839453991,6.5603,152.38,152.35,6.5613]
[1745839454792,6.5607,152.37,152.35,6.5613]
[1745839456391,6.5604,152.38,152.35,6.5613]
[1745839456890,19.69,152.45,152.34,6.5617]
[1745839457090,6.5608,152.37,152.34,6.5617]
[1745839458595,6.5611,152.36,152.28,472.34]
[1745839459296,6.5611,152.36,152.33,6.5621]
[1745839460295,6.5611,152.36,152.34,6.5619]
[1745839461298,6.5611,152.36,152.33,6.5622]
[1745839461596,6.5611,152.36,152.26,13.1303]
[1745839461793,6.5608,152.37,152.34,6.5619]
[1745839462795,6.5612,152.36,152.34,6.5619]
[1745839462997,6.5612,152.36,152.33,6.5621]
[1745839464298,6.5612,152.36,152.34,6.5618]
[1745839466000,6.5608,152.37,152.34,6.5618]
[1745839466199,19.69,152.43,152.34,6.5618]
[1745839466497,4.40028859,152.42,152.34,6.5618]
[1745839466694,6.5609,152.37,152.34,6.5618]
[1745839466896,19.69,152.43,152.34,6.5618]
[1745839467096,4.40057609,152.42,152.34,6.5618]
[1745839467395,6.5611,152.36,152.34,6.5618]
[1745839468499,6.5609,152.37,152.35,6.5615]
[1745839468793,6.5609,152.37,152.27,13.1292]
[1745839469296,6.5609,152.37,152.34,6.5617]
[1745839470698,32.8071,152.42,152.27,13.1292]
[1745839470897,4.4048096,152.41,152.27,13.1292]
[1745839471098,6.5617,152.35,152.27,13.1292]
[1745839471294,32.8071,152.42,152.33,6.5622]
[1745839471491,4.40718134,152.41,152.33,6.5622]
[1745839471690,4.40718134,152.41,152.27,13.1292]
[1745839471691,6.5618,152.35,152.27,13.1292]
[1745839471898,32.8079,152.41,152.25,1.14238818]
[1745839472099,6.5621,152.34,152.26,1.20549521]
[1745839472299,32.8079,152.41,152.26,1.20549521]
[1745839472600,6.5617,152.35,152.32,6.5625]
[1745839473601,6.5619,152.34,152.32,6.5625]
[1745839473901,32.8079,152.41,152.33,6.5623]
[1745839474200,4.41164149,152.4,152.33,6.5623]
[1745839474500,4.41164149,152.39,152.33,6.5623]
[1745839474802,6.5616,152.35,152.33,6.5623]
[1745839474995,32.8079,152.41,152.33,6.5623]
[1745839475195,4.41360009,152.4,152.33,6.5623]
[1745839475496,4.41360009,152.39,152.24,472.3]
[1745839475693,4.41360009,152.38,152.25,1.20544886]
[1745839475891,4.41360009,152.37,152.25,1.20544886]
[1745839476092,6.5604,152.38,152.35,6.5612]
[1745839476293,4.41447084,152.37,152.35,6.5612]
[1745839476500,6.5604,152.38,152.35,6.5612]
[1745839476702,10.97525156,152.37,152.34,6.5618]
[1745839476902,6.5608,152.37,152.34,6.5618]
[1745839478305,6.5604,152.38,152.35,6.5614]
[1745839478499,4.41182029,152.37,152.35,6.5614]
[1745839478700,6.5604,152.38,152.35,6.5614]
[1745839479001,4.41437013,152.37,152.36,6.5611]
[1745839479405,4.41437013,152.37,152.35,6.5613]
[1745839479601,6.5604,152.38,152.35,6.5613]
[1745839479801,4.41451864,152.37,152.35,6.5613]
[1745839480002,6.5604,152.38,152.35,6.5613]
[1745839480202,4.41450427,152.37,152.28,13.1289]
[1745839480403,6.5604,152.38,152.28,13.1289]
[1745839480603,4.41453238,152.37,152.36,6.5611]
[1745839480907,4.41456993,152.37,152.36,6.5611]
[1745839481607,6.5601,152.39,152.36,6.5611]
[1745839481808,4.41482092,152.38,152.36,6.5611]
[1745839482012,6.5596,152.4,152.37,6.5605]
[1745839482305,4.41453597,152.39,152.24,493.14038196]
[1745839482608,6.5593,152.41,152.3,13.1272]
[1745839482808,4.41446983,152.4,152.3,13.1272]
[1745839483008,4.41446983,152.39,152.3,13.1272]
[1745839483307,6.5593,152.41,152.37,6.5603]
[1745839483510,4.40975974,152.4,152.37,6.5603]
[1745839483804,4.40975974,152.39,152.3,13.1272]
[1745839484108,6.5594,152.4,152.3,13.1272]
[1745839484308,6.5594,152.4,152.37,6.5603]
[1745839484900,4.40921195,152.39,152.3,13.1272]
[1745839485204,32.804,152.46,152.3,13.1272]
[1745839485400,6.5601,152.39,152.3,13.1272]
[1745839485701,6.5601,152.39,152.35,6.5612]
[1745839486112,6.5603,152.38,152.35,6.5612]
[1745839486511,19.69,152.45,152.34,6.5617]
[1745839486711,24.09965768,152.44,152.29,472.34]
[1745839486911,4.40965768,152.43,152.29,472.34]
[1745839487116,6.5604,152.38,152.35,6.5614]
[1745839487412,472.34,152.47,152.29,472.34]
[1745839487613,6.5583,152.43,152.29,472.34]
[1745839487805,4.41089285,152.46,152.29,472.34]
[1745839487806,4.41089285,152.42,152.29,472.34]
[1745839488010,19.69,152.48,152.29,472.34]
[1745839488211,4.41105441,152.47,152.29,472.34]
[1745839488415,4.41105441,152.46,152.32,13.1252]
[1745839488615,4.41105441,152.45,152.32,13.1252]
[1745839488817,4.41105441,152.44,152.33,1.20494359]
[1745839489017,4.41105441,152.43,152.4,6.5591]
[1745839489321,19.69,152.49,152.32,13.1252]
[1745839489518,19.69,152.47,152.32,13.1252]
[1745839489811,6.5586,152.42,152.38,6.5601]
[1745839490017,4.40754317,152.41,152.32,13.1252]
[1745839490217,6.5586,152.42,152.38,6.5598]
[1745839490418,10.96581587,152.41,152.38,6.5598]
[1745839490718,6.5591,152.41,152.38,6.5598]
[1745839499025,6.5594,152.4,152.38,6.5598]
[1745839499325,19.69,152.46,152.29,472.34]
[1745839499524,6.5598,152.39,152.3,1.20514639]
[1745839500026,6.5598,152.39,152.36,6.5607]
[1745839500629,6.5596,152.4,152.37,6.5606]
[1745839504428,6.5598,152.39,152.36,6.5608]
[1745839504733,6.5598,152.39,152.29,472.34]
[1745839505029,6.5595,152.4,152.37,6.5604]
[1745839506931,6.5595,152.4,152.38,6.5602]
[1745839508634,6.5591,152.41,152.38,6.5602]
[1745839509533,6.5595,152.4,152.37,6.5604]
[1745839510133,6.5595,152.4,152.38,6.5601]
[1745839510633,6.5591,152.41,152.38,6.5601]
[1745839511333,6.5591,152.41,152.3,13.1269]
[1745839511334,6.5591,152.41,152.39,6.5597]
[1745839511634,6.5586,152.42,152.39,6.5597]
[1745839511835,19.69,152.49,152.29,472.34]
[1745839512135,4.40376832,152.48,152.3,1.2050046]
[1745839512435,4.40376832,152.47,152.44,6.5576]
[1745839512638,4.40376832,152.46,152.44,6.5576]
[1745839512830,472.24,152.51,152.44,6.5576]
[1745839513032,4.40374269,152.5,152.44,6.5576]
[1745839513233,4.40374269,152.49,152.44,6.5576]
[1745839513433,10.95984269,152.48,152.45,6.5571]
[1745839513736,4.40374269,152.47,152.45,6.5571]
[1745839514032,6.5561,152.48,152.45,6.5571]
[1745839514234,10.95881354,152.47,152.44,6.5574]
[1745839514432,6.5564,152.47,152.44,6.5574]
[1745839515234,6.5561,152.48,152.45,6.5571]
[1745839515439,4.40412614,152.47,152.45,6.5571]
[1745839515638,19.69,152.54,152.45,6.5571]
[1745839515833,6.5561,152.48,152.45,6.5571]
[1745839516032,4.40696338,152.47,152.45,6.5571]
[1745839516340,6.5561,152.48,152.45,6.5571]
[1745839516538,10.96239786,152.47,152.45,6.5571]
[1745839516733,6.5563,152.47,152.45,6.5571]
[1745839517032,13.1063,152.55,152.31,1.14150758]
[1745839517339,4.40544149,152.54,152.32,1.20460524]
[1745839517636,4.40544149,152.53,152.39,13.1195]
[1745839517837,4.40544149,152.52,152.39,13.1195]
[1745839518137,6.5552,152.5,152.47,6.5563]
[1745839519337,505.0125,152.59,152.4,13.1187]
[1745839519539,4.4014008,152.58,152.41,1.20439165]
[1745839519740,4.4014008,152.57,152.41,1.20439165]
[1745839519939,4.4014008,152.56,152.41,1.20439165]
[1745839520237,4.4014008,152.55,152.42,13.1169]
[1745839520437,6.553,152.55,152.51,6.5542]
[1745839520631,33.92998939,152.64,152.51,6.5542]
[1745839520833,4.39814488,152.63,152.51,6.5542]
[1745839521035,4.39814488,152.62,152.39,833.18]
[1745839521235,4.39814488,152.61,152.4,1.20412413]
[1745839521433,4.39814488,152.6,152.4,1.20412413]
[1745839521635,4.39814488,152.59,152.52,6.5537]
[1745839521840,4.39495478,152.58,152.44,13.1148]
[1745839522136,6.5523,152.57,152.45,1.20394219]
[1745839522441,13.0988,152.64,152.45,1.20394219]
[1745839522442,92.83513268,152.63,152.45,1.20394219]
[1745839522639,6.5528,152.56,152.45,1.20394219]
[1745839523241,6.5528,152.56,152.44,13.1148]
[1745839523537,6.5528,152.56,152.53,6.5537]
[1745839523743,92.83513268,152.63,152.53,6.5537]
[1745839524038,4.39005066,152.62,152.53,6.5537]
[1745839524341,4.39005066,152.61,152.53,6.5537]
[1745839524636,6.5524,152.57,152.53,6.5537]
[1745839524843,92.83513268,152.63,152.44,13.1148]
[1745839525046,4.3861233,152.62,152.45,1.20396633]
[1745839525246,4.3861233,152.61,152.45,1.20396633]
[1745839525445,4.3861233,152.6,152.44,13.1148]
[1745839525645,13.0988,152.64,152.45,1.20401193]
[1745839525845,6.5529,152.56,152.52,6.5541]
[1745839526741,6.5529,152.56,152.44,13.1148]
[1745839526742,1.14089009,152.66,152.45,13.1141]
[1745839527044,4.38586911,152.65,152.46,1.20395617]
[1745839527247,6.5516,152.58,152.55,6.5526]
[1745839527438,472.1,152.67,152.55,6.5526]
[1745839527642,4.38428937,152.66,152.55,6.5526]
[1745839527838,4.38428937,152.65,152.56,6.5524]
[1745839528145,4.38445129,152.64,152.46,13.1132]
[1745839528343,6.5515,152.59,152.47,1.2038759]
[1745839528537,6.5515,152.59,152.55,6.5526]
[1745839528946,6.5517,152.58,152.55,6.5526]
[1745839529948,6.5513,152.59,152.55,6.5526]
[1745839530453,491.79,152.67,152.55,6.5526]
[1745839530650,17.47517179,152.66,152.54,6.5531]
[1745839530848,24.06867179,152.65,152.46,13.1132]
[1745839531047,6.5528,152.56,152.53,6.5537]
[1745839531349,19.69,152.65,152.46,13.1132]
[1745839531651,4.3781043,152.64,152.47,1.20390225]
[1745839532049,6.5533,152.54,152.51,6.5544]
[1745839532248,13.0982,152.64,152.46,13.1132]
[1745839532444,4.37579794,152.63,152.46,13.1132]
[1745839532648,4.37579794,152.63,152.53,6.5535]
[1745839533155,6.5525,152.56,152.54,6.5533]
[1745839533549,6.5525,152.56,152.46,13.1132]
[1745839533746,13.0982,152.64,152.46,13.1132]
[1745839533949,4.37436849,152.63,152.46,13.1132]
[1745839534353,4.37436849,152.63,152.53,6.5535]
[1745839534556,19.69,152.61,152.43,1.14090879]
[1745839534854,6.5536,152.54,152.5,6.5547]
[1745839535151,6.5536,152.54,152.43,1.14090879]
[1745839535346,6.5536,152.54,152.51,6.5546]
[1745839536354,6.5536,152.54,152.5,6.5548]
[1745839536647,6.5531,152.55,152.43,13.1161]
[1745839536853,6.5531,152.55,152.51,6.5543]
[1745839537456,6.5531,152.55,152.52,6.5541]
[1745839537851,6.5531,152.55,152.51,6.5544]
[1745839538255,6.5534,152.54,152.43,13.1161]
[1745839538455,6.5534,152.54,152.5,6.555]
[1745839538854,6.553,152.55,152.43,13.1161]
[1745839539054,13.1,152.62,152.44,14.31908584]
[1745839539255,4.36980576,152.61,152.44,13.115]
[1745839539456,6.5528,152.56,152.52,6.5541]
[1745839540057,6.553,152.55,152.52,6.5541]
[1745839540551,6.553,152.55,152.51,6.5544]
[1745839540759,32.79,152.62,152.44,13.115]
[1745839541056,4.36848266,152.61,152.44,13.115]
[1745839541447,6.5529,152.55,152.44,13.115]
[1745839541648,6.5529,152.55,152.51,6.5543]
[1745839542559,6.5529,152.55,152.52,6.5542]
[1745839542964,6.5529,152.55,152.44,13.115]
[1745839543162,6.5529,152.55,152.45,1.20407567]
[1745839543860,6.5529,152.55,152.52,6.554]
[1745839544564,32.79,152.62,152.52,6.554]
[1745839544764,4.36988399,152.61,152.52,6.554]
[1745839545066,6.5532,152.55,152.52,6.554]
[1745839546362,6.5532,152.55,152.53,6.5537]
[1745839547067,6.5532,152.55,152.52,6.554]
[1745839547767,6.5537,152.54,152.51,6.5544]
[1745839548170,6.5537,152.54,152.45,13.1142]
[1745839548468,6.5531,152.55,152.52,6.5538]
[1745839548660,13.1009,152.61,152.43,1.14087139]
[1745839548862,4.37530549,152.6,152.43,1.14087139]
[1745839549058,6.5536,152.54,152.44,1.20408327]
[1745839549260,19.69,152.6,152.44,1.20408327]
[1745839549466,24.06639783,152.59,152.43,14.25637139]
[1745839549665,19.69,152.59,152.49,6.5551]
[1745839550166,6.5542,152.53,152.5,6.555]
[1745839550363,6.5542,152.53,152.43,13.1155]
[1745839550565,6.5535,152.54,152.51,6.5545]
[1745839550862,19.69,152.6,152.43,13.1155]
[1745839551059,24.07095231,152.59,152.44,1.20410096]
[1745839551372,19.69,152.59,152.44,1.20410096]
[1745839551968,19.69,152.6,152.5,6.5548]
[1745839552162,24.07355092,152.59,152.5,6.5548]
[1745839552367,6.554,152.53,152.5,6.5548]
[1745839552871,6.5535,152.54,152.51,6.5545]
[1745839553163,32.7909,152.61,152.44,13.1153]
[1745839553370,4.38693552,152.6,152.44,13.1153]
[1745839553569,6.5531,152.55,152.52,6.554]
[1745839553769,32.7909,152.61,152.52,6.554]
[1745839553964,6.5531,152.55,152.52,6.554]
[1745839556370,6.5527,152.56,152.44,13.1153]
[1745839556574,6.5527,152.56,152.53,6.5537]
[1745839557274,6.5529,152.55,152.52,6.5539]
[1745839557573,32.7909,152.61,152.52,6.5539]
[1745839557774,6.5528,152.56,152.52,6.5539]
[1745839558179,32.7909,152.61,152.45,13.1141]
[1745839558378,4.39890678,152.6,152.46,1.20395995]
[1745839558674,4.39890678,152.59,152.46,1.20395995]
[1745839558874,4.39890678,152.58,152.46,1.20395995]
[1745839559170,6.5531,152.55,152.45,13.1141]
[1745839559578,19.69,152.64,152.46,1.20395816]
[1745839559777,4.40131213,152.63,152.47,1.20395816]
[1745839560074,6.5513,152.59,152.48,1.20395816]
[1745839560275,13.0978,152.65,152.48,1.20395816]
[1745839560476,4.40410027,152.64,152.48,1.20395816]
[1745839560676,6.5518,152.58,152.48,1.20395816]
[1745839560880,13.0978,152.65,152.54,6.5531]
[1745839561069,6.5517,152.58,152.48,1.20395816]
[1745839561276,6.5517,152.58,152.47,13.1126]
[1745839561479,13.0978,152.65,152.48,1.20378615]
[1745839561675,6.5512,152.59,152.48,1.20378615]
[1745839562182,13.0978,152.65,152.48,1.20378615]
[1745839562183,4.41110202,152.58,152.49,13.1109]
[1745839562380,472.1,152.67,152.57,6.552]
[1745839562681,4.41185073,152.66,152.57,6.552]
[1745839562881,4.41185073,152.65,152.57,6.552]
[1745839563182,4.41185073,152.64,152.56,6.5523]
[1745839563379,4.41185073,152.63,152.56,6.5523]
[1745839563581,4.41185073,152.62,152.56,6.5523]
[1745839563783,4.41185073,152.61,152.55,6.5527]
[1745839563985,4.41185073,152.6,152.55,6.5527]
[1745839564185,6.5514,152.59,152.55,6.5527]
[1745839564389,19.69,152.66,152.5,471.8]
[1745839564682,24.10337624,152.65,152.5,471.8]
[1745839564884,24.10337624,152.64,152.5,471.8]
[1745839565079,4.41337624,152.63,152.52,6.5539]
[1745839565285,4.41337624,152.62,152.5,471.8]
[1745839565583,4.41337624,152.61,152.5,471.8]
[1745839565786,4.41337624,152.6,152.5,471.8]
[1745839565976,4.41337624,152.59,152.5,471.8]
[1745839566283,6.5521,152.57,152.5,471.8]
[1745839566687,6.5521,152.57,152.53,6.5534]
[1745839566881,6.5521,152.57,152.5,471.8]
[1745839567589,6.5521,152.57,152.45,875.76304]
[1745839567783,6.5521,152.57,152.46,14.31735675]
[1745839567984,6.5521,152.57,152.47,1.20385675]
[1745839568189,4.40541793,152.56,152.46,13.1135]
[1745839568485,32.7891,152.63,152.46,13.1135]
[1745839568784,4.40517282,152.62,152.46,13.1135]
[1745839568985,4.40517282,152.61,152.46,13.1135]
[1745839569179,4.40517282,152.6,152.46,13.1135]
[1745839569484,4.40517282,152.59,152.51,6.5542]
[1745839569681,6.5532,152.55,152.46,13.1135]
[1745839570089,6.5532,152.55,152.52,6.5539]
[1745839570388,6.5527,152.56,152.46,13.1135]
[1745839570579,6.5527,152.56,152.53,6.5535]
[1745839570890,6.5524,152.57,152.46,13.1135]
[1745839571084,4.4060482,152.56,152.54,6.553]
[1745839571282,32.7891,152.63,152.46,13.1135]
[1745839571587,4.4065193,152.62,152.46,13.1135]
[1745839571783,4.4065193,152.61,152.52,6.554]
[1745839572088,6.5527,152.56,152.46,13.1135]
[1745839572286,32.7891,152.63,152.52,6.554]
[1745839572487,4.40253107,152.62,152.52,6.554]